fUSD/lending_fUSD_20241207
["ID","MTS","AMOUNT","RATE_DAILY","PERIOD"]
[344549096,1733541090109,-743.73,0.00015881,2]
[344549097,1733541090119,-607.63,0.00015881,2]
[344549098,1733541090129,-3248.7,0.00015881,2]
[344549099,1733541090139,-500.0,0.00015881,2]
[344549100,1733541090148,-857.46,0.00015881,2]
[344549101,1733541090158,-3403.71,0.00015881,2]
[344549102,1733541090168,-546.54,0.00015881,2]
[344549103,1733541090178,-500.0,0.00015881,2]
[344549104,1733541090188,-700.0,0.00015881,2]
[344549105,1733541090198,-545.2,0.00015881,2]
[344549106,1733541090208,-922.6,0.00015881,2]
[344549107,1733541090217,-506.19,0.00015881,2]
[344549108,1733541090227,-1285.83,0.00015881,2]
[344549109,1733541090237,-553.43,0.00015881,2]
[344549110,1733541090246,-500.0,0.00015881,2]
[344549111,1733541090256,-1097.94,0.00015881,2]
[344549112,1733541090266,-753.13,0.00015881,2]
[344549113,1733541090276,-893.85,0.00015881,2]
[344549114,1733541090285,-610.6,0.00015881,2]
[344549115,1733541090295,-500.0,0.00015881,2]
[344549116,1733541090306,-500.0,0.00015881,2]
[344549117,1733541090315,-2397.76,0.00015881,2]
[344549118,1733541090325,-500.0,0.00015881,2]
[344549119,1733541090334,-500.0,0.00015881,2]
[344549120,1733541090344,-500.0,0.00015881,2]
[344549121,1733541090354,-1962.86,0.00015881,2]
[344549122,1733541090364,-500.0,0.00015881,2]
[344549123,1733541090374,-3708.05,0.00015881,2]
[344549124,1733541090383,-465.42298802,0.00015881,2]
[344549125,1733541090393,-500.0,0.00015881,2]
[344549126,1733541090402,-1882.97,0.00015881,2]
[344549127,1733541090411,-500.0,0.00015881,2]
[344549128,1733541090421,-555.52,0.00015881,2]
[344549129,1733541090430,-500.0,0.00015881,2]
[344549130,1733541090440,-500.0,0.00015881,2]
[344549131,1733541090451,-841.17,0.00015881,2]
[344549132,1733541090460,-584.44,0.00015881,2]
[344549133,1733541090471,-656.6,0.00015881,2]
[344549134,1733541090480,-868.73,0.00015881,2]
[344549135,1733541090491,-691.9,0.00015881,2]
[344549136,1733541090500,-730.65,0.00015881,2]
[344549137,1733541090510,-500.0,0.00015881,2]
[344549138,1733541090519,-217.52839363,0.00015881,2]
[344549139,1733541090529,-500.0,0.00015881,2]
[344549140,1733541090539,-3564.03,0.00015881,2]
[344549141,1733541090549,-1736.61,0.00015881,2]
[344549142,1733541090561,-2313.64,0.00015881,10]
[344549143,1733541090570,-2880.03,0.00015881,2]
[344549144,1733541090580,-574.1,0.00015881,2]
[344549145,1733541090590,-605.61,0.00015881,2]
[344549146,1733541090604,-1145.2,0.00015881,2]
[344549147,1733541090613,-500.0,0.00015881,2]
[344549148,1733541090623,-500.0,0.00015881,2]
[344549149,1733541090633,-977.63,0.00015881,2]
[344549150,1733541090643,-857.76,0.00015881,2]
[344549151,1733541090653,-866.03,0.00015881,2]
[344549152,1733541090663,-4199.14,0.00015881,2]
[344549153,1733541090674,-843.87,0.00015881,2]
[344549154,1733541090683,-2318.54,0.00015881,2]
[344549155,1733541090693,-500.0,0.00015881,2]
[344549156,1733541090703,-513.08,0.00015882,2]
[344549157,1733541090712,-500.0,0.00015882,2]
[344549158,1733541090721,-638.70849831,0.00015882,2]
[344549159,1733541090731,-804.90760185,0.00015882,2]
[344549160,1733541090740,-500.0,0.00015882,2]
[344549161,1733541090750,-1822.29,0.00015882,2]
[344549162,1733541090759,-500.0,0.00015882,2]
[344549163,1733541090769,-4455.3,0.00015882,2]
[344549164,1733541090779,-561.77,0.00015882,2]
[344549165,1733541090788,-963.02,0.00015882,2]
[344549166,1733541090799,-8683.14,0.00015882,7]
[344549167,1733541090810,-2668.21,0.00015882,2]
[344549168,1733541090819,-496.53393422,0.00015882,2]
[344549169,1733541090830,-1941.45,0.00015882,2]
[344549170,1733541090839,-627.31,0.00015883,2]
[344549171,1733541090848,-500.0,0.00015883,2]
[344549172,1733541090858,-533.44,0.00015883,2]
[344549173,1733541090868,-286.09645304,0.00015883,2]
[344549174,1733541090878,-546.95,0.00015883,2]
[344549175,1733541090887,-211.45651896,0.00015883,2]
[344549176,1733541090897,-729.39,0.00015885,2]
[344549177,1733541090907,-959.0,0.0001589,2]
[344549178,1733541090916,-700.0,0.000159,5]
[344549179,1733541090926,-150.0,0.00015907,2]
[344549180,1733541090935,-150.0,0.00015912,2]
[344549181,1733541090945,-150.0,0.00015922,2]
[344549182,1733541090955,-1500.0,0.00015923,2]
[344549183,1733541090965,-150.0,0.00015923,2]
[344549184,1733541090974,-1500.0,0.0001593,2]
[344549185,1733541090984,-150.0,0.00015931,2]
[344549186,1733541090994,-150.0,0.00015932,2]
[344549187,1733541091003,-1500.0,0.00015936,2]
[344549188,1733541091013,-150.0,0.00015937,2]
[344549189,1733541091023,-1500.0,0.0001594,2]
[344549190,1733541091032,-1500.0,0.00015949,2]
[344549191,1733541091043,-3000.0,0.00015952,2]
[344549192,1733541091053,-150.0,0.00015956,2]
[344549193,1733541091062,-150.0,0.00015961,2]
[344549194,1733541091073,-150.0,0.00015966,2]
[344549195,1733541091082,-1500.0,0.00015988,2]
[344549196,1733541091092,-150.0,0.0001599,2]
[344549197,1733541091104,-150.0,0.00015994,2]
[344549198,1733541091114,-1500.0,0.00015996,2]
[344549199,1733541091123,-1544.70195631,0.00016,5]
[344549200,1733541091134,-3362.88147607,0.00016,2]
[344549201,1733541091143,-500.0,0.00016,2]
[344549202,1733541091153,-661.72,0.00016,2]
[344549203,1733541091162,-136105.66120182,0.00016,2]
[344549204,1733541091172,-10000.0,0.00016,5]
[344549205,1733541091182,-1500.0,0.00016011,2]
[344549206,1733541091192,-1500.0,0.00016016,2]
[344549207,1733541091201,-152.0,0.0001602,7]
[344549208,1733541091211,-150.0,0.00016023,2]
[344549209,1733541091220,-150.0,0.00016054,2]
[344549210,1733541091230,-150.0,0.00016055,2]
[344549211,1733541091239,-150.0,0.00016059,2]
[344549212,1733541091249,-150.0,0.00016059,2]
[344549213,1733541091258,-150.0,0.00016069,2]
[344549214,1733541091267,-1500.0,0.00016074,2]
[344549215,1733541091276,-150.0,0.00016074,2]
[344549216,1733541091286,-150.0,0.00016076,2]
[344549217,1733541091296,-150.0,0.00016078,2]
[344549218,1733541091307,-150.0,0.00016079,2]
[344549219,1733541091317,-150.0,0.00016079,2]
[344549220,1733541091326,-1500.0,0.0001608,2]
[344549221,1733541091336,-150.0,0.00016081,2]
[344549222,1733541091346,-150.0,0.00016082,2]
[344549223,1733541091356,-150.0,0.00016084,2]
[344549224,1733541091365,-150.0,0.00016094,2]
[344549225,1733541091375,-150.0,0.00016094,2]
[344549226,1733541091385,-1500.0,0.00016099,2]
[344549227,1733541091395,-150.0,0.00016104,2]
[344549228,1733541091404,-150.0,0.00016106,2]
[344549229,1733541091415,-1500.0,0.00016109,2]
[344549230,1733541091424,-150.0,0.0001611,2]
[344549231,1733541091433,-150.0,0.00016113,2]
[344549232,1733541091443,-150.0,0.00016115,2]
[344549233,1733541091453,-9999.99,0.00016116,2]
[344549234,1733541091463,-150.0,0.00016119,2]
[344549235,1733541091475,-157.49353571,0.00016121,2]
[344549236,1733541091485,-150.0,0.00016123,2]
[344549237,1733541091494,-150.0,0.00016124,2]
[344549238,1733541091505,-150.0,0.0001613,2]
[344549239,1733541091514,-150.0,0.00016135,2]
[344549240,1733541091524,-1500.0,0.00016142,2]
[344549241,1733541091534,-150.0,0.00016143,2]
[344549242,1733541091543,-150.0,0.00016146,2]
[344549243,1733541091556,-1500.0,0.00016149,2]
[344549244,1733541091566,-562.43,0.00016155,2]
[344549245,1733541091576,-500.0,0.00016155,2]
[344549246,1733541091586,-429.7774933,0.00016155,2]
[344549247,1733541091599,-569.03,0.00016155,2]
[344549248,1733541091608,-712.37,0.00016155,2]
[344549249,1733541091618,-755.27,0.00016155,2]
[344549250,1733541091628,-500.0,0.00016155,2]
[344549251,1733541091639,-500.0,0.00016155,2]
[344549252,1733541091649,-1134.32,0.00016155,2]
[344549253,1733541091659,-500.0,0.00016155,2]
[344549254,1733541091670,-729.35,0.00016155,2]
[344549255,1733541091680,-655.62,0.00016155,2]
[344549256,1733541091690,-500.0,0.00016155,2]
[344549257,1733541091699,-559.97,0.00016155,2]
[344549258,1733541091709,-629.17,0.00016155,2]
[344549259,1733541091719,-363.11,0.00016155,2]
[344549260,1733541091729,-522.4,0.00016155,2]
[344549261,1733541091738,-558.13,0.00016155,2]
[344549262,1733541091748,-596.81,0.00016155,2]
[344549263,1733541091758,-1715.02,0.00016155,2]
[344549264,1733541091768,-743.73,0.00016155,2]
[344549265,1733541091778,-607.63,0.00016155,2]
[344549266,1733541091788,-3248.7,0.00016155,2]
[344549267,1733541091797,-500.0,0.00016155,2]
[344549268,1733541091810,-857.46,0.00016155,2]
[344549269,1733541091820,-3403.71,0.00016155,2]
[344549270,1733541091830,-546.54,0.00016155,2]
[344549271,1733541091840,-500.0,0.00016155,2]
[344549272,1733541091851,-700.0,0.00016155,2]
[344549273,1733541091860,-545.2,0.00016155,2]
[344549274,1733541091870,-922.6,0.00016155,2]
[344549275,1733541091880,-506.19,0.00016155,2]
[344549276,1733541091890,-1285.83,0.00016155,2]
[344549277,1733541091900,-553.43,0.00016155,2]
[344549278,1733541091910,-500.0,0.00016155,2]
[344549279,1733541091920,-1097.94,0.00016155,2]
[344549280,1733541091930,-753.13,0.00016155,2]
[344549281,1733541091940,-893.85,0.00016155,2]
[344549282,1733541091950,-610.6,0.00016155,2]
[344549283,1733541091959,-500.0,0.00016155,2]
[344549284,1733541091969,-500.0,0.00016155,2]
[344549285,1733541091978,-2397.76,0.00016155,2]
[344549286,1733541091987,-500.0,0.00016155,2]
[344549287,1733541091996,-500.0,0.00016155,2]
[344549288,1733541092006,-500.0,0.00016155,2]
[344549289,1733541092016,-1962.86,0.00016155,2]
[344549290,1733541092026,-380.93219285,0.00016155,2]
[344549291,1733541092036,-3708.05,0.00016155,2]
[344549292,1733541092046,-500.0,0.00016155,2]
[344549293,1733541092056,-1882.97,0.00016155,2]
[344549294,1733541092064,-500.0,0.00016155,2]
[344549295,1733541092073,-555.52,0.00016155,2]
[344549296,1733541092083,-500.0,0.00016155,2]
[344549297,1733541092093,-500.0,0.00016155,2]
[344549298,1733541092103,-841.17,0.00016155,2]
[344549299,1733541092112,-584.44,0.00016155,2]
[344549300,1733541092121,-656.6,0.00016155,2]
[344549301,1733541092131,-868.73,0.00016155,2]
[344549302,1733541092141,-730.65,0.00016155,2]
[344549303,1733541092151,-691.9,0.00016155,2]
[344549304,1733541092161,-500.0,0.00016155,2]
[344549305,1733541092170,-500.0,0.00016155,2]
[344549306,1733541092180,-3564.03,0.00016155,2]
[344549307,1733541092189,-1736.61,0.00016155,2]
[344549308,1733541092198,-2313.64,0.00016155,10]
[344549309,1733541092212,-2880.03,0.00016155,2]
[344549310,1733541092222,-574.1,0.00016155,2]
[344549311,1733541092231,-605.61,0.00016155,2]
[344549312,1733541092240,-1145.2,0.00016155,2]
[344549313,1733541092250,-500.0,0.00016155,2]
[344549314,1733541092259,-500.0,0.00016155,2]
[344549315,1733541092268,-977.63,0.00016155,2]
[344549316,1733541092278,-857.76,0.00016155,2]
[344549317,1733541092288,-866.03,0.00016155,2]
[344549318,1733541092298,-4199.14,0.00016155,2]
[344549319,1733541092311,-843.87,0.00016155,2]
[344549320,1733541092325,-2318.54,0.00016155,2]
[344549321,1733541092334,-500.0,0.00016155,2]
[344549322,1733541092343,-513.08,0.00016156,2]
[344549323,1733541092353,-500.0,0.00016156,2]
[344549324,1733541092362,-500.0,0.00016156,2]
[344549325,1733541092372,-1822.29,0.00016156,2]
[344549326,1733541092381,-500.0,0.00016156,2]
[344549327,1733541092392,-4455.3,0.00016156,2]
[344549328,1733541092401,-561.77,0.00016156,2]
[344549329,1733541092411,-963.02,0.00016156,2]
[344549330,1733541092421,-8683.14,0.00016156,7]
[344549331,1733541092429,-2668.21,0.00016156,2]
[344549332,1733541092438,-1941.45,0.00016156,2]
[344549333,1733541092448,-151.0,0.00016157,2]
[344549334,1733541092457,-151.0,0.00016157,2]
[344549335,1733541092466,-206.680747,0.00016157,2]
[344549336,1733541092475,-206.680747,0.00016157,2]
[344549337,1733541092484,-1188.428512,0.00016157,2]
[344549338,1733541092493,-1188.428512,0.00016157,2]
[344549339,1733541092503,-319.379058,0.00016157,2]
[344549340,1733541092512,-319.379058,0.00016157,2]
[344549341,1733541092522,-1102.155403,0.00016157,2]
[344549342,1733541092531,-1102.155403,0.00016157,2]
[344549343,1733541092541,-151.0,0.00016157,2]
[344549344,1733541092552,-391.68929,0.00016157,2]
[344549345,1733541092562,-151.0,0.00016157,2]
[344549346,1733541092571,-391.68929,0.00016157,2]
[344549347,1733541092580,-627.31,0.00016157,2]
[344549348,1733541092590,-500.0,0.00016157,2]
[344549349,1733541092605,-533.44,0.00016157,2]
[344549350,1733541092614,-546.95,0.00016157,2]
[344549351,1733541092623,-151.0,0.00016158,2]
[344549352,1733541092633,-294.065892,0.00016158,2]
[344549353,1733541092642,-294.065892,0.00016158,2]
[344549354,1733541092651,-397.225766,0.00016158,2]
[344549355,1733541092660,-397.225766,0.00016158,2]
[344549356,1733541092670,-330.265946,0.00016158,2]
[344549357,1733541092679,-330.265946,0.00016158,2]
[344549358,1733541092688,-151.0,0.00016158,2]
[344549359,1733541092697,-151.0,0.00016158,2]
[344549360,1733541092706,-729.39,0.00016159,2]
[344549361,1733541092717,-150.0,0.00016159,2]
[344549362,1733541092726,-959.0,0.00016164,2]
[344549363,1733541092736,-150.0,0.00016164,2]
[344549364,1733541092745,-150.0,0.00016166,2]
[344549365,1733541092755,-150.0,0.00016173,2]
[344549366,1733541092766,-150.0,0.00016173,2]
[344549367,1733541092775,-150.0,0.00016175,2]
[344549368,1733541092785,-1500.0,0.00016177,2]
[344549369,1733541092795,-150.0,0.00016179,2]
[344549370,1733541092807,-150.0,0.00016182,2]
[344549371,1733541092816,-150.0,0.00016185,2]
[344549372,1733541092826,-1500.0,0.00016186,2]
[344549373,1733541092835,-150.0,0.00016188,2]
[344549374,1733541092845,-150.0,0.00016189,2]
[344549375,1733541092854,-150.0,0.00016191,2]
[344549376,1733541092864,-150.0,0.00016192,2]
[344549377,1733541092874,-150.0,0.00016192,2]
[344549378,1733541092884,-1500.0,0.00016193,2]
[344549379,1733541092893,-150.0,0.00016193,2]
[344549380,1733541092903,-200.0,0.00016198,3]
[344549381,1733541092912,-200.0,0.00016198,3]
[344549382,1733541092922,-200.0,0.00016198,2]
[344549383,1733541092931,-200.0,0.00016198,2]
[344549384,1733541092941,-150.0,0.00016198,2]
[344549385,1733541092950,-1500.0,0.00016199,2]
[344549386,1733541092960,-1500.0,0.00016206,2]
[344549387,1733541092970,-150.0,0.00016206,2]
[344549388,1733541092979,-150.0,0.00016209,2]
[344549389,1733541092989,-296.77933762,0.00016211,2]
[344549390,1733541092999,-150.0,0.00016215,2]
[344549391,1733541093008,-150.0,0.00016217,2]
[344549392,1733541093018,-150.0,0.00016217,2]
[344549393,1733541093028,-150.0,0.00016221,2]
[344549394,1733541093038,-150.0,0.00016222,2]
[344549395,1733541093048,-150.0,0.0001623,2]
[344549396,1733541093061,-1500.0,0.00016233,2]
[344549397,1733541093072,-150.0,0.00016235,2]
[344549398,1733541093082,-1500.0,0.00016236,2]
[344549399,1733541093093,-150.0,0.00016236,2]
[344549400,1733541093103,-150.0,0.0001624,2]
[344549401,1733541093114,-1500.0,0.00016241,2]
[344549402,1733541093124,-150.0,0.00016243,2]
[344549403,1733541093135,-150.0,0.00016244,2]
[344549404,1733541093146,-150.0,0.00016244,2]
[344549405,1733541093156,-150.0,0.00016245,2]
[344549406,1733541093166,-150.0,0.00016248,2]
[344549407,1733541093177,-150.0,0.00016249,2]
[344549408,1733541093187,-150.0,0.00016251,2]
[344549409,1733541093197,-150.0,0.00016252,2]
[344549410,1733541093206,-152.0,0.00016253,8]
[344549411,1733541093216,-150.0,0.00016255,2]
[344549412,1733541093226,-150.0,0.00016261,2]
[344549413,1733541093236,-150.0,0.00016265,2]
[344549414,1733541093246,-150.0,0.00016268,2]
[344549415,1733541093255,-150.0,0.00016268,2]
[344549416,1733541093264,-150.0,0.00016271,2]
[344549417,1733541093274,-150.0,0.00016275,2]
[344549418,1733541093285,-150.0,0.0001628,2]
[344549419,1733541093295,-150.0,0.00016286,2]
[344549420,1733541093307,-150.0,0.00016293,2]
[344549421,1733541093317,-150.0,0.00016297,2]
[344549422,1733541093327,-150.0,0.00016299,2]
[344549423,1733541093337,-73398.80412213,0.000163,2]
[344549424,1733541093346,-151.0,0.000163,2]
[344549425,1733541093356,-1500.0,0.00016306,2]
[344549426,1733541093366,-269.977844,0.00016327,2]
[344549427,1733541093376,-269.977844,0.00016327,2]
[344549428,1733541093386,-151.0,0.00016327,2]
[344549429,1733541093397,-442.334201,0.00016327,2]
[344549430,1733541093407,-442.334201,0.00016327,2]
[344549431,1733541093417,-150.0,0.00016328,2]
[344549432,1733541093427,-150.0,0.00016334,2]
[344549433,1733541093437,-1500.0,0.00016335,2]
[344549434,1733541093447,-150.0,0.00016339,2]
[344549435,1733541093457,-200.0,0.0001634,2]
[344549436,1733541093467,-150.0,0.00016352,2]
[344549437,1733541093477,-150.0,0.00016354,2]
[344549438,1733541093487,-150.0,0.00016367,2]
[344549439,1733541093498,-1056.0,0.00016371,2]
[344549440,1733541093508,-150.0,0.00016374,2]
[344549441,1733541093519,-1500.0,0.00016374,2]
[344549442,1733541093529,-150.0,0.00016374,2]
[344549443,1733541093539,-150.0,0.00016377,2]
[344549444,1733541093548,-150.0,0.0001638,2]
[344549445,1733541093560,-1500.0,0.0001638,2]
[344549446,1733541093571,-150.0,0.00016389,2]
[344549447,1733541093582,-5431.61826173,0.0001639,5]
[344549448,1733541093598,-150.0,0.00016391,2]
[344549449,1733541093609,-150.0,0.00016392,2]
[344549450,1733541093620,-150.0,0.00016394,2]
[344549451,1733541093631,-1500.0,0.000164,2]
[344549452,1733541093643,-150.0,0.00016403,2]
[344549453,1733541093653,-150.0,0.00016406,2]
[344549454,1733541093663,-150.0,0.00016421,2]
[344549455,1733541093674,-562.43,0.00016429,2]
[344549456,1733541093685,-500.0,0.00016429,2]
[344549457,1733541093695,-156.21474,0.00016429,2]
[344549458,1733541093706,-569.03,0.00016429,2]
[344549459,1733541093717,-712.37,0.00016429,2]
[344549460,1733541093727,-755.27,0.00016429,2]
[344549461,1733541093737,-620.43027113,0.00016429,2]
[344549462,1733541093748,-170.83838581,0.00016429,2]
[344549463,1733541093758,-1134.32,0.00016429,2]
[344549464,1733541093770,-500.0,0.00016429,2]
[344549465,1733541093780,-729.35,0.00016429,2]
[344549466,1733541093791,-655.62,0.00016429,2]
[344549467,1733541093802,-500.0,0.00016429,2]
[344549468,1733541093813,-559.97,0.00016429,2]
[344549469,1733541093823,-629.17,0.00016429,2]
[344549470,1733541093833,-522.4,0.00016429,2]
[344549471,1733541093844,-558.13,0.00016429,2]
[344549472,1733541093854,-596.81,0.00016429,2]
[344549473,1733541093864,-1715.02,0.00016429,2]
[344549474,1733541093875,-743.73,0.00016429,2]
[344549475,1733541093886,-607.63,0.00016429,2]
[344549476,1733541093897,-3248.7,0.00016429,2]
[344549477,1733541093908,-319.48153023,0.00016429,2]
[344549478,1733541093918,-857.46,0.00016429,2]
[344549479,1733541093928,-3403.71,0.00016429,2]
[344549480,1733541093938,-546.54,0.00016429,2]
[344549481,1733541093948,-500.0,0.00016429,2]
[344549482,1733541093958,-700.0,0.00016429,2]
[344549483,1733541093968,-545.2,0.00016429,2]
[344549484,1733541093979,-922.6,0.00016429,2]
[344549485,1733541093989,-506.19,0.00016429,2]
[344549486,1733541094000,-1285.83,0.00016429,2]
[344549487,1733541094011,-553.43,0.00016429,2]
[344549488,1733541094021,-500.0,0.00016429,2]
[344549489,1733541094032,-1097.94,0.00016429,2]
[344549490,1733541094044,-753.13,0.00016429,2]
[344549491,1733541094056,-893.85,0.00016429,2]
[344549492,1733541094066,-610.6,0.00016429,2]
[344549493,1733541094076,-500.0,0.00016429,2]
[344549494,1733541094087,-500.0,0.00016429,2]
[344549495,1733541094097,-2397.76,0.00016429,2]
[344549496,1733541094108,-500.0,0.00016429,2]
[344549497,1733541094118,-500.0,0.00016429,2]
[344549498,1733541094129,-500.0,0.00016429,2]
[344549499,1733541094140,-1962.86,0.00016429,2]
[344549500,1733541094151,-3708.05,0.00016429,2]
[344549501,1733541094161,-500.0,0.00016429,2]
[344549502,1733541094171,-1882.97,0.00016429,2]
[344549503,1733541094182,-500.0,0.00016429,2]
[344549504,1733541094193,-555.52,0.00016429,2]
[344549505,1733541094204,-500.0,0.00016429,2]
[344549506,1733541094227,-500.0,0.00016429,2]
[344549507,1733541094255,-841.17,0.00016429,2]
[344549508,1733541094265,-584.44,0.00016429,2]
[344549509,1733541094276,-656.6,0.00016429,2]
[344549510,1733541094287,-868.73,0.00016429,2]
[344549511,1733541094298,-730.65,0.00016429,2]
[344549512,1733541094316,-691.9,0.00016429,2]
[344549513,1733541094326,-500.0,0.00016429,2]
[344549514,1733541094336,-500.66634446,0.00016429,2]
[344549515,1733541094347,-3564.03,0.00016429,2]
[344549516,1733541094357,-1736.61,0.00016429,2]
[344549517,1733541094368,-2313.64,0.00016429,10]
[344549518,1733541094378,-2880.03,0.00016429,2]
[344549519,1733541094389,-574.1,0.00016429,2]
[344549520,1733541094400,-605.61,0.00016429,2]
[344549521,1733541094410,-1145.2,0.00016429,2]
[344549522,1733541094421,-500.0,0.00016429,2]
[344549523,1733541094433,-500.0,0.00016429,2]
[344549524,1733541094443,-977.63,0.00016429,2]
[344549525,1733541094454,-857.76,0.00016429,2]
[344549526,1733541094464,-866.03,0.00016429,2]
[344549527,1733541094477,-4199.14,0.00016429,2]
[344549528,1733541094488,-843.87,0.00016429,2]
[344549529,1733541094499,-2318.54,0.00016429,2]
[344549530,1733541094510,-500.0,0.00016429,2]
[344549531,1733541094520,-513.08,0.0001643,2]
[344549532,1733541094531,-500.0,0.0001643,2]
[344549533,1733541094543,-159.81009598,0.0001643,2]
[344549534,1733541094555,-1822.29,0.0001643,2]
[344549535,1733541094565,-500.0,0.0001643,2]
[344549536,1733541094576,-4455.3,0.0001643,2]
[344549537,1733541094587,-561.77,0.0001643,2]
[344549538,1733541094600,-963.02,0.0001643,2]
[344549539,1733541094614,-8683.14,0.0001643,7]
[344549540,1733541094625,-2668.21,0.0001643,2]
[344549541,1733541094635,-1941.45,0.0001643,2]
[344549542,1733541094647,-627.31,0.00016431,2]
[344549543,1733541094658,-500.0,0.00016431,2]
[344549544,1733541094668,-533.44,0.00016431,2]
[344549545,1733541094681,-546.95,0.00016431,2]
[344549546,1733541094691,-243.526131,0.00016433,2]
[344549547,1733541094702,-243.526131,0.00016433,2]
[344549548,1733541094712,-151.0,0.00016433,2]
[344549549,1733541094722,-729.39,0.00016433,2]
[344549550,1733541094733,-253.679153,0.00016433,2]
[344549551,1733541094743,-253.679153,0.00016433,2]
[344549552,1733541094753,-175.845962,0.00016433,2]
[344549553,1733541094763,-175.845962,0.00016433,2]
[344549554,1733541094773,-1500.0,0.00016433,2]
[344549555,1733541094784,-150.0,0.00016433,2]
[344549556,1733541094794,-150.0,0.00016434,2]
[344549557,1733541094804,-150.0,0.00016435,2]
[344549558,1733541094815,-959.0,0.00016438,2]
[344549559,1733541094826,-401.51,0.00016438,2]
[344549560,1733541094836,-401.51,0.00016438,2]
[344549561,1733541094847,-401.51,0.00016438,2]
[344549562,1733541094857,-401.51,0.00016438,2]
[344549563,1733541094868,-401.51,0.00016438,2]
[344549564,1733541094879,-401.51,0.00016438,2]
[344549565,1733541094891,-401.51,0.00016438,2]
[344549566,1733541094902,-401.51,0.00016438,2]
[344549567,1733541094912,-401.51,0.00016438,2]
[344549568,1733541094924,-401.51,0.00016438,2]
[344549569,1733541094934,-401.51,0.00016438,2]
[344549570,1733541094944,-401.51,0.00016438,2]
[344549571,1733541094955,-401.51,0.00016438,2]
[344549572,1733541094966,-401.51,0.00016438,2]
[344549573,1733541094976,-401.51,0.00016438,2]
[344549574,1733541094986,-401.51,0.00016438,2]
[344549575,1733541094997,-401.51,0.00016438,2]
[344549576,1733541095007,-401.51,0.00016438,2]
[344549577,1733541095018,-401.51,0.00016438,2]
[344549578,1733541095029,-401.51,0.00016438,2]
[344549579,1733541095275,-401.51,0.00016438,2]
[344549580,1733541095297,-500.0,0.00016438,2]
[344549581,1733541095311,-500.0,0.00016438,2]
[344549582,1733541095322,-500.0,0.00016438,2]
[344549583,1733541095334,-500.0,0.00016438,2]
[344549584,1733541095345,-500.0,0.00016438,2]
[344549585,1733541095355,-500.0,0.00016438,2]
[344549586,1733541095367,-597.64988912,0.00016438,2]
[344549587,1733541095377,-829.41,0.00016438,2]
[344549588,1733541095388,-829.41,0.00016438,2]
[344549589,1733541095399,-829.41,0.00016438,2]
[344549590,1733541095409,-829.41,0.00016438,2]
[344549591,1733541095419,-829.41,0.00016438,2]
[344549592,1733541095429,-829.41,0.00016438,2]
[344549593,1733541095439,-829.41,0.00016438,2]
[344549594,1733541095449,-829.41,0.00016438,2]
[344549595,1733541095459,-829.41,0.00016438,2]